Cogmind - Beta 15 @@@ ROGUE MODE // 2025.10.12 @ 22:22:23 Player: Oertel Result: Destroyed by TW-0YD(z) with Makeshift Hammer Performance ------------- Evolutions (1) 500 Regions Visited (4) 800 Robots Destroyed (46) 230 Value Destroyed (1031) 1031 Prototype IDs (3) 60 Alien Tech Used (0) 0 Bonus (702) 702 TOTAL SCORE: 3323 Bonus ------- Follower Combat Kills 135 Met Imprinter 300 Was Imprinted 300 Friendly Fire -33 Cogmind --------- Core Integrity 0/400 Matter 194/300 Energy 265/265 System Corruption 1% Temperature Cool (19) Movement Core (900) Ox17 Location -7/Zion Parts ------- > --- POWER (1) -------- Improved Ion Engine > --- PROPULSION (3) --- Aluminum Leg Aluminum Leg > --- UTILITY (3) ------ High-capacity Storage Unit Improved Signal Interpreter Hacking Drone Bay (1/1) > --- WEAPON (2) ------- Heavy Assault Rifle Autogun > --- INVENTORY (20) --- Heavy Ion Engine Heavy Ion Engine VSS Leg VSS Leg VSS Leg VSS Leg Improved Carbon-fiber Leg Small Matter Pod (50) Improved Signal Interpreter Improved Signal Interpreter 0b10 Decoder Chip [Generic] Target Analyzer Medium Armor Plating Hardened Light Armor Plating Mobile Refinery Mk. CCLXVII Light Assault Rifle Heavy Assault Rifle Autogun Improved Light Cannon Rocket Launcher Peak State ------------ > --- POWER ------------ Improved Ion Engine > --- PROPULSION ------- Aluminum Leg Aluminum Leg Aluminum Leg > --- UTILITY ---------- High-capacity Storage Unit Improved Signal Interpreter Hacking Drone Bay > --- WEAPON ----------- Heavy Assault Rifle Autogun > --- INVENTORY -------- Heavy Ion Engine Heavy Ion Engine VSS Leg VSS Leg VSS Leg VSS Leg Improved Carbon-fiber Leg Small Matter Pod Improved Signal Interpreter Improved Signal Interpreter 0b10 Decoder Chip [Generic] Target Analyzer Medium Armor Plating Hardened Light Armor Plating Mobile Refinery Mk. CCLXVII Light Assault Rifle Heavy Assault Rifle Autogun Improved Light Cannon Rocket Launcher [Rating: 27] Favorites ----------- Power Improved Ion Engine Engine Improved Ion Engine Propulsion Aluminum Leg Treads Light Treads Leg Aluminum Leg Utility High-capacity Storage Unit Device Hacking Drone Bay Storage High-capacity Storage Unit Processor Improved Signal Interpreter Protection Hardened Light Armor Plating Weapon Heavy Assault Rifle Energy Gun Medium Laser Ballistic Gun Heavy Assault Rifle Launcher Rocket Launcher Special Weapon Mining Laser Build | -11 -10 -9 -9 -7 ------- Run | Yrd Mat Mat Min Zio Slots Evolved 2 | . . 2 . . Power . | . . . . . Propulsion 1 | . . 1 . . Utility 1 | . . 1 . . Weapon . | . . . . . Parts Attached 41 | 7 1 24 3 6 Power 6 | 1 . 4 1 . Engine 6 | 1 . 4 1 . Core . | . . . . . Reactor . | . . . . . Propulsion 14 | 3 . 7 2 2 Treads 1 | 1 . . . . Leg 13 | 2 . 7 2 2 Wheel . | . . . . . Hover . | . . . . . Flight . | . . . . . Utility 9 | 1 1 5 . 2 Device 3 | . . 1 . 2 Storage 2 | 1 . 1 . . Processor 2 | . 1 1 . . Hackware . | . . . . . Protection 2 | . . 2 . . Artifact . | . . . . . Weapon 12 | 2 . 8 . 2 Energy Gun 1 | 1 . . . . Energy Cannon . | . . . . . Ballistic Gun 9 | 1 . 6 . 2 Ballistic Cannon . | . . . . . Launcher 1 | . . 1 . . Special Weapon 1 | . . 1 . . Impact Weapon . | . . . . . Slashing Weapon . | . . . . . Piercing Weapon . | . . . . . Special Melee Weapon . | . . . . . Unidentified Prototypes 3 | . . 1 . 2 Parts Lost 14 | . . 10 3 1 Power 2 | . . 1 1 . Propulsion 6 | . . 3 2 1 Utility 2 | . . 2 . . Weapon 4 | . . 4 . . Highest Loss Streak 3 | . . 3 3 1 To Critical Strikes 1 | . . . . 1 Average Backups 17 | 4 4 14 17 19 Power 1 | . 1 1 2 2 Propulsion 5 | 1 2 6 5 5 Utility 4 | . . 1 4 7 Weapon 5 | 2 1 3 5 5 Tool/Special . | . . . . . Unused Backups 32 | . 1 13 . 18 Power 3 | . . 1 . 2 Propulsion 12 | . . 7 . 5 Utility 10 | . . 3 . 7 Weapon 7 | . 1 2 . 4 Tool/Special . | . . . . . Average Slot Usage (%) 98 | . 96 94 98 100 Engine 11 | . 14 10 10 11 Leg 31 | . 28 29 32 33 Device 4 | . . 1 . 6 Storage 11 | . 14 11 11 11 Processor 10 | . 10 11 11 11 Protection 6 | . . 7 11 4 Ballistic Gun 21 | . 14 20 22 21 Peak Build Rating 27 | 6 7 22 21 27 Average Rating 19 | 3 6 15 18 23 On Entrance 10 | . 6 7 21 19 Naked Turns . | . . . . . Heaviest Build 59 | 14 14 59 59 58 Greatest Support 39 | 20 20 39 33 30 Greatest Overweight (x) 4 | 1 . 4 2 1 Average Overweight (x) . | . . . 1 1 Largest Inventory Capacity 20 | 8 8 20 20 20 Average Capacity 18 | 7 8 16 20 20 Most Carried 20 | 6 5 20 20 20 Average Carried 17 | 5 4 14 17 19 Final Capacity 20 | 8 8 20 20 20 Final Carried 20 | 4 5 18 20 20 Class Distribution -------------------- 66% | Scavenger-Mutant 33% | Mutant Dominant Class ---------------- Mutant | -10/Materials Mutant | -9/Materials Scavenger-Mutant | -9/Mines Scavenger-Mutant | -7/Zion Resources | -11 -10 -9 -9 -7 ----------- Run | Yrd Mat Mat Min Zio Matter Collected 1491 | 198 141 976 136 40 Remotely . | . . . . . Salvage Created 1539 | . 72 1174 268 25 Parts 109 | . 4 80 22 3 Haulers Intercepted 5 | . 1 4 . . Recyclers Shooed 4 | . . 4 . . Parts Field Recycled . | . . . . . Retrieved Matter . | . . . . . Parts Self-Destructed 1 | . . . . 1 Prevented . | . . . . . Kills | -11 -10 -9 -9 -7 ------- Run | Yrd Mat Mat Min Zio Combat Hostiles Destroyed 37 | . 2 26 9 . Guns 37 | . 2 26 9 . Classes Destroyed 9 | . 2 4 2 1 Worker 1 | . . . 1 . Hauler 5 | . 1 4 . . Recycler 1 | . . . 1 . Watcher 1 | . . 1 . . Swarmer 16 | . 2 7 7 . Grunt 14 | . . 12 2 . Brawler 1 | . . 1 . . Sentry 6 | . . 6 . . Zionite 1 | . . . . 1 Best Kill Streak 4 | . 2 4 4 1 Combat Bots Only 4 | . 2 4 4 . Max Kills in Single Turn 2 | . 1 2 2 1 Gunslinging 1 | . . 1 1 . Exploded . | . . . . . Melee . | . . . . . Uniques/NPCs Destroyed . | . . . . . Combat | -11 -10 -9 -9 -7 -------- Run | Yrd Mat Mat Min Zio Hostile Shots Fired 300 | . 13 185 56 46 Missed 70 | . 5 39 13 13 Hits 230 | . 8 146 43 33 Melee 6 | . . . . 6 Projectile 224 | . 8 146 43 27 Critical Strikes 7 | . . 4 . 3 Part Disruptions 3 | . . . . 3 Damage Taken 2822 | . 58 1734 397 633 Core 433 | . 24 232 55 122 Absorbed by Shields . | . . . . . Regen/Repaired (Parts) 241 | . . . . 241 Core Remaining (%) 95 | 100 90 . . . Volleys Fired 159 | . 16 115 16 12 Largest 2 | . 2 2 2 2 Hottest 100 | . 70 100 46 46 Shots Fired 299 | . 32 212 32 23 Gun 291 | . 32 205 32 22 Cannon . | . . . . . Launcher 4 | . . 3 . 1 Special 4 | . . 4 . . Kinetic 274 | . 16 204 32 22 Thermal 21 | . 16 5 . . Explosive 4 | . . 3 . 1 Electromagnetic . | . . . . . Robot Hit Streak 11 | . 4 11 3 11 Robot Miss Streak 4 | . 3 3 4 1 Penetration Max . | . . . . . Secondary Targets 9 | . 1 4 4 . Max Gunslinging Chain 1 | . 1 1 1 . Shots Hit Robots 190 | . 14 141 15 20 Core Hits 72 | . 4 49 13 6 Critical Kills . | . . . . . Critical Parts Destroyed . | . . . . . Critical Strikes 1 | . 1 . . . Burn 1 | . 1 . . . Melee Attacks . | . . . . . Impact . | . . . . . Slashing . | . . . . . Piercing . | . . . . . Sneak Attacks . | . . . . . Combat Hostiles . | . . . . . Follow-up Attacks . | . . . . . Damage Inflicted 2901 | . 178 2079 295 349 Guns 2843 | . 178 2067 282 316 Cannons . | . . . . . Explosions 33 | . . . . 33 Melee . | . . . . . Ramming 25 | . . 12 13 . Kinetic 2719 | . 66 2055 282 316 Thermal 124 | . 112 12 . . Explosive 33 | . . . . 33 Electromagnetic . | . . . . . Impact . | . . . . . Slashing . | . . . . . Piercing . | . . . . . Highest Corruption . | . . . . . Average Corruption . | . . . . . Corruption Purged . | . . . . . Corruption Blocked . | . . . . . Overload Shots . | . . . . . Overflow Damage . | . . . . . Projectiles . | . . . . . Explosions . | . . . . . Melee . | . . . . . Knockbacks . | . . . . . Impact . | . . . . . Kinetic . | . . . . . Secondary . | . . . . . Self-Inflicted Damage . | . . . . . Shots . | . . . . . Rammed . | . . . . . Targets Rammed 7 | . 1 4 2 . Kicked 7 | . 1 4 2 . Crushed . | . . . . . Highest Temperature 81 | . 81 79 67 78 Average Temperature 27 | . 30 21 31 42 Received Heat Transfer 1121 | . . 786 75 260 Siege Activations . | . . . . . Martial Activations . | . . . . . Shielding Activations . | . . . . . Robots Disrupted . | . . . . . Combat Hostiles . | . . . . . Robots Corrupted . | . . . . . Combat Hostiles . | . . . . . Parts Fried . | . . . . . Impact Corruptions . | . . . . . Robots Melted . | . . . . . Combat Hostiles . | . . . . . Parts Melted . | . . . . . Heat Transferred 444 | . 407 37 . . Parts Sabotaged . | . . . . . Parts Stolen . | . . . . . Parts Stripped . | . . . . . Power Chain Reactions . | . . . . . Alert | -11 -10 -9 -9 -7 ------- Run | Yrd Mat Mat Min Zio Maximum Alert Level . | . . . . . Low Security (%) 100 | 100 100 100 100 . Level 1 . | . . . . . Level 2 . | . . . . . Level 3 . | . . . . . Level 4 . | . . . . . Level 5 . | . . . . . High Security . | . . . . . Max Security . | . . . . . Peak Influence 163 | . 55 163 108 . Initial 58 | . . 3 58 . Average 57 | . 16 66 45 . Influence Increases 1085 | . 76 774 235 . Destroy 0b10 Robot/C 740 | . 40 520 180 . Destroy 0b10 Robot/NC 40 | . 5 25 10 . Destroy Leader 172 | . 12 130 30 . Successful Hack 10 | . 4 6 . . Disable Machine 30 | . . 30 . . Destroy Structure 33 | . . 33 . . Lose Combat Pursuer 60 | . 15 30 15 . Influence Decreases 1085 | . 67 632 323 63 Entered New Map 162 | . . 6 93 63 Time Decay 793 | . 67 526 200 . Lost Part 130 | . . 100 30 . Squads Dispatched 2 | . . 2 . . Investigation . | . . . . . Extermination . | . . . . . Reinforcement 2 | . . 2 . . Assault . | . . . . . Garrison . | . . . . . Intercept . | . . . . . Searches Triggered . | . . . . . Construction Impeded . | . . . . . Haulers Reinforced . | . . . . . Active Scanning Responses . | . . . . . Cargo Convoy Interrupts . | . . . . . Stealth | -11 -10 -9 -9 -7 --------- Run | Yrd Mat Mat Min Zio Distress Signals 3 | . 2 1 . . Communications Jammed . | . . . . . Distress Signals . | . . . . . Times Spotted 61 | . 7 36 10 8 Peak Tracking Total 6 | . 3 6 4 6 Tactical Retreats 4 | . 1 2 1 . Traps | -11 -10 -9 -9 -7 ------- Run | Yrd Mat Mat Min Zio Traps Triggered . | . . . . . Indirectly . | . . . . . Trap Hack Attempts . | . . . . . Triggered . | . . . . . Disarmed . | . . . . . Reprogrammed . | . . . . . Reused . | . . . . . Traps Extracted . | . . . . . Installed . | . . . . . Triggered . | . . . . . Machines | -11 -10 -9 -9 -7 ---------- Run | Yrd Mat Mat Min Zio Machines Disabled 3 | . . 2 . 1 Max in Single Turn 1 | . . 1 . . Machines Repaired . | . . . . . Machines Dismantled . | . . . . . Machines Sabotaged . | . . . . . Overloaded Fab Kills . | . . . . . Hacking | -11 -10 -9 -9 -7 --------- Run | Yrd Mat Mat Min Zio Machines Accessed 9 | . 1 8 . . Terminals 8 | . 1 7 . . Fabricators . | . . . . . Repair Stations . | . . . . . Recycling Units . | . . . . . Scanalyzers 1 | . . 1 . . Garrison Access . | . . . . . Total Hacks 24 | . 3 21 . . Successful 12 | . 3 9 . . Failed 12 | . . 12 . . Catastrophic 2 | . . 2 . . Database Lockouts . | . . . . . Manual 21 | . 4 16 . 1 Terminals 22 | . 3 19 . . Fabricators . | . . . . . Repair Stations . | . . . . . Recycling Units . | . . . . . Scanalyzers 2 | . . 2 . . Garrison Access . | . . . . . Terminal Hacks 10 | . 3 7 . . Record 1 | . . 1 . . Robot Analysis 3 | . 2 1 . . Alert Level 2 | . . 2 . . Locate Traps 3 | . 1 2 . . Dispatch Records 1 | . . 1 . . Fabricator Hacks . | . . . . . Repair Station Hacks . | . . . . . Recycling Unit Hacks . | . . . . . Scanalyzer 2 | . . 2 . . Insert Component 1 | . . 1 . . Analyze 1 | . . 1 . . Garrison Access Hacks . | . . . . . Unauthorized Hacks . | . . . . . Terminals . | . . . . . Fabricators . | . . . . . Repair Stations . | . . . . . Recycling Units . | . . . . . Scanalyzers . | . . . . . Garrison Access . | . . . . . Data Cores Recovered . | . . . . . Used . | . . . . . Hacking Detections 7 | . 1 6 . . Full Trace Events . | . . . . . Feedback Events . | . . . . . Feedback Blocked . | . . . . . Robot Schematics Acquired 3 | . . . . 3 Robots Built . | . . . . . Authchips . | . . . . . Time . | . . . . . Total Robot Build Rating . | . . . . . Part Schematics Acquired 16 | . . 1 . 15 Parts Built . | . . . . . Authchips . | . . . . . Time . | . . . . . Total Part Build Rating . | . . . . . Parts Repaired . | . . . . . Time . | . . . . . Parts Recycled . | . . . . . Recycled Matter . | . . . . . Retrieved Matter . | . . . . . Retrieved Components . | . . . . . Parts Scanalyzed 1 | . . 1 . . Part Schematics Acquired 1 | . . 1 . . Parts Damaged . | . . . . . Bothacking | -11 -10 -9 -9 -7 ------------ Run | Yrd Mat Mat Min Zio Used RIF Installer . | . . . . . Robots Hacked . | . . . . . Non-combat . | . . . . . Combat . | . . . . . Robot Hacks Applied . | . . . . . Relay Couplers Released . | . . . . . Fabnet Peak Effective % . | . . . . . Robots Rewired . | . . . . . Allies Hacked . | . . . . . Hacks Repelled . | . . . . . Allies | -11 -10 -9 -9 -7 -------- Run | Yrd Mat Mat Min Zio Total Allies 6 | . . . . 6 Largest Group 6 | . . . . 6 Highest-Rated Group 344 | . . . . 344 Highest-Rated Ally 96 | . . . . 96 Total Orders . | . . . . . Ally Attacks 19 | . . . . 19 Total Damage 608 | . . . . 608 Kills 3 | . . . . 3 Allies Corrupted . | . . . . . Allies Melted . | . . . . . Intel | -11 -10 -9 -9 -7 ------- Run | Yrd Mat Mat Min Zio Active Infowar (turns) 342 | . . 342 . . Sensors 342 | . . 342 . . Robot Analysis Total 3 | . 2 1 . . Derelict Logs Recovered 2 | . . . 1 1 Drone Launches . | . . . . . Drone Recoveries . | . . . . . Exploration | -11 -10 -9 -9 -7 ------------- Run | Yrd Mat Mat Min Zio Turns Passed 7745 | 74 256 2413 610 4392 Spaces Moved 3799 | 47 157 1029 290 2276 Core 11 | 11 . . . . Treads 12 | 12 . . . . Legs 3776 | 24 157 1029 290 2276 Wheels . | . . . . . Hover . | . . . . . Flight . | . . . . . Fastest Speed 50 | 50 120 120 190 190 Average Speed 179 | 117 120 166 191 190 Slowest Speed 400 | 160 120 400 260 190 Overloaded Moves . | . . . . . Propulsion Burnouts . | . . . . . Robots Hopped . | . . . . . Potential Cave-ins . | . . . . . Cave-ins Triggered . | . . . . . Exploration Rate (%) 44 | 5 31 53 41 92 Regions Visited 4 Branch Regions 2 Pre-discovered Areas . | . . . . . Known Exits Taken 3 | . 1 1 1 . Unknown Exits Taken 1 | 1 . . . . Scrap Searched 4 | . . . 1 3 Spaces Dug 15 | . . 15 . . Terrain Destroyed 38 | . . 38 . . Melee . | . . . . . Projectile 4 | . . 4 . . AOE 34 | . . 34 . . Terrain Rammed . | . . . . . Walls Destroyed . | . . . . . Machines Disabled . | . . . . . Actions | -11 -10 -9 -9 -7 --------- Run | Yrd Mat Mat Min Zio Total 4410 | 63 192 1518 315 2322 Wait 297 | . 15 265 . 17 Move 3795 | 46 156 1028 289 2276 Hop . | . . . . . Pick Up 64 | 7 2 45 5 5 Fast Attach 8 | 4 1 3 . . Attach 16 | 3 . 10 3 . Detach 1 | . . 1 . . Swap 30 | 2 . 21 . 7 Drop 33 | 1 1 26 . 5 Fire 159 | . 16 115 16 12 Melee . | . . . . . Ram . | . . . . . Kick 7 | . 1 4 2 . Crush . | . . . . . Escape Stasis . | . . . . . Rewire . | . . . . . Trap . | . . . . . Miscellaneous . | . . . . . Route ------- -11/Scrapyard -10/Materials (discovered 2 exits: *Mat / [*Min]) -9/Materials -9/Mines (discovered 2 exits: *Mat / *Zio) -7/Zion (discovered 1 exit: *Pro) History --------- Turn | Location | Event 4 | -11/Scrapyard | Discovered new exit (range 15) 75 | -11/Scrapyard | Entered Materials 76 | -10/Materials | Met a group of wandering Federalists 162 | -10/Materials | Discovered new exit (range 12) 174 | -10/Materials | Lost 5 allies 295 | -10/Materials | Discovered new exit (range 15) 305 | -10/Materials | Build established: Mutant 315 | -10/Materials | Identified exit to Materials 331 | -10/Materials | Entered another Materials area 331 | -9/Materials | Evolved 2 slots: Propulsion x1, Utility x1 2570 | -9/Materials | Core integrity fell below 50% 2633 | -9/Materials | Lost 3 parts (1n2w) 2642 | -9/Materials | Discovered new exit (range 6) 2650 | -9/Materials | Identified exit to Mines 2744 | -9/Materials | Entered Mines 2790 | -9/Mines | Lost 3 parts (1p2n) 3007 | -9/Mines | Learned 2 Materials zone layouts 3011 | -9/Mines | Discovered new exit (range 7) 3021 | -9/Mines | Identified exit to Materials 3084 | -9/Mines | Build established: Scavenger-Mutant 3087 | -9/Mines | A Derelict revealed a hidden shortcut to a safe place 3105 | -9/Mines | Identified exit to Zion 3354 | -9/Mines | Entered Zion 3530 | -7/Zion | Discovered new exit (range 12) 3549 | -7/Zion | Identified exit to Proximity Caves 3789 | -7/Zion | Learned Factory emergency access door positions 4441 | -7/Zion | Given A8's code to call for help 4492 | -7/Zion | Given the Hacking Drone Bay 4553 | -7/Zion | Met Imprinter 4587 | -7/Zion | Imprinted 4589 | -7/Zion | Declared Zion's savior 5267 | -7/Zion | Found Prototype Device 5268 | -7/Zion | Identified Mobile Refinery Mk. CCLXVII 5336 | -7/Zion | Found Prototype Device 5337 | -7/Zion | Identified Hacking Drone Bay 6062 | -7/Zion | Visited the Megawrench Repair Shop 6062 | -7/Zion | Megawrench repaired 7 parts 6625 | -7/Zion | Enhanced Grunt warped into view, answering call for help 6626 | -7/Zion | Enhanced Grunt warped into view, answering call for help 7712 | -7/Zion | Attacked by Zionites 7741 | -7/Zion | Core integrity fell below 20% 7746 | -7/Zion | Destroyed by TW-0YD(z) with Makeshift Hammer Last Messages --------------- 07719_ I2-MT3(M) destroyed. 07719_ Enhanced Grunt knocked back. 07721_ CE-P80(M) destroyed. 07723_ KT-VX3(z) destroyed. 07724_ Chain reaction triggered in Imp. Deuterium Engine. 07728_ Enhanced Grunt destroyed. 07731_ EM-Y70(z) pulls a Mak. Hammer out of the Twisted Machinery. 07733_ YB-DHI(M) destroyed. 07733_ Enhanced Grunt suffers critical hit (Blast). 07733_ Enhanced Grunt knocked back. 07736_ Enhanced Grunt destroyed. TW-0YD(z) bursts out of the Twisted Machinery. 07745_ Destroyed Enh. Flamer. 07746_ Critical hit (Smash). 07746_ Aluminum Leg destroyed. 07746_ System corrupted by crushing effect (+1). 07746_ Knocked back. Map ----- +----------------------------------------------------+ | ?????????????????????????????????????????????????? | | ?????????????????????????????????????????????????? | | ?????????????????????????????????????????????????? | | ?????????????????????????????????????????????????? | | ?????????????????????????????????????????????????? | | ?????????????????????????????????????????????????? | | ?????????????????????????????????????????????????? | | ?????????????????????????????????????????????????? | | ?????????????????????????????????????????????????? | | ?????????????????????????????????????????????????? | | ?????????????????????????????????????????????????? | | ???????????????????????????????????????????????### | | ?????????????????????????????????????????????###"" | | ??????????????????????????"""""##???????????##"""" | | ??????????????????????????#"""""#""?????????#"""" | | ????????????????????????##"" """"""#????????##" | | ????????????????????????#""" ""#???????#""" | | ???????????????????????##"" "#???????#"""" | | ??????????????????######"" ""????####""#""" | | ????????????????###"#"#?#" ""#??###"###""""" | | ?????????????????"""""###" ""####"#"""#"""" | | ?????????????????# ""##""" ""#""##""""""" | | ?????????????????" "##""" """""""" | | ?????????????????# !###""! """""" | | ????????????????## *"" ""/ "" | | ????????????????" M!!*%@=%* "" "" | | ????????????????" %!%!!z%!M! """" "" """ | | ????????????????# "=%=!!%z """" """"" | | ??????????????#"" """="]"!=%% """ " | | ?????????????#"""""""##"" | | ?????????????###""####""" | | ???????????????###???#""" """" | | ?????????????????????##"" """"""""" "" | | ???????????????????#####" """"""""""" " "" | | ???????????????????"%"#"" """" """##"" "" """ | | ?????????????????#""["" """" "####" "" """ | | ?????????????????# """" ""##"" " ""# | | ?????????????????#" "# "" """"" "" | | ?????????????????##"""## "" "" | | ??????????????????##""# "" "" | | ???????????????????###### """ "" ""# | | ????????????????????????### """" """""#" | | ??????????????????????????## """" ""#"##? | | ??????????????????????##??#" """" ""###?? | | ??????????????###?????#"###"" """ #""#??? | | ????????????###"#?####?#"#""" "" "" """#??? | | ????????????#"""###""####"""""""" " """#??? | | ###########?#""""""""""""" """" #""#??? | | """"""""" ###" """""" """ #"##??? | | """"""""" #""" "" " ""##??? | +----------------------------------------------------+ Best States ------------- Heat Dissipation 28 Energy Generation 14 Energy Capacity 280 Matter Stores 300 Matter Capacity 300 Sight Range 16 Robot Scan Range 14 Terrain Scan Density 10 Armor Coverage 150 Evasion (%) 55 Recoil Reduction 1 Item Schematics ----------------- Aluminum Leg | -9/Materials | Scanalyzed Core Analyzer | -7/Zion | Archive Lgt. Angular Momentum Engine | -7/Zion | Archive Adv. Shield Generator | -7/Zion | Archive Imp. Carbon-fiber Leg | -7/Zion | Archive Adv. Heat Sink | -7/Zion | Archive Lyr. Light Armor Plating | -7/Zion | Archive Adv. Sensor Array | -7/Zion | Archive Imp. Salvage Targeting Computer | -7/Zion | Archive Angular Momentum Engine | -7/Zion | Archive Dynamic Insulation System | -7/Zion | Archive Imp. Plasma Cutter | -7/Zion | Archive Greatsword | -7/Zion | Archive Coil Gun | -7/Zion | Archive Imp. Hardlight Generator | -7/Zion | Archive Imp. Melee Analysis Suite | -7/Zion | Archive Robot Schematics ------------------ M-14 Sweeper | -7/Zion | Archive L-41 Fighter | -7/Zion | Archive A-02 Transporter | -7/Zion | Archive Fabricated ------------ Nothing Repaired ---------- Nothing Alien Tech Used ----------------- None Achievements -------------- Help From High Places Challenges ------------ None Game ------ Seed HugeIntegratedShell Manual? 0 Play Time 01:12:40 Cumulative 24.7 hours Start 2025.10.12 @ 19:59:23 End 2025.10.12 @ 22:22:23 Sessions 1 Manual Loads 0 Difficulty Rogue Special Mode None Game No. 16 Rogue 16 Adventurer 0 Explorer 0 Win Type - Total 0 Types 0/0/0/0/0/0/0/0/0/0 Lore% 12 Gallery% 14 Achievement% 18 Wizard Run 0 Options --------- Layout 1 ASCII 0 Keyboard 0 Movement Mouse Keybinds 0 Fullscreen 2 Font 32/Tamsyn Map View 50x35 Zoom Use 0% Tactical HUD 1 Map Filters NONE Filters NONE Steam 1 RUN: cad33f03-0015-45c8-ace4-1acb84925033